fUSD/lending_fUSD_20250118
["ID","MTS","AMOUNT","RATE_DAILY","PERIOD"]
[349429035,1737175853972,-523.66,0.00020896,2]
[349429036,1737175853981,-500.0,0.00020896,2]
[349429039,1737175853991,-500.0,0.00020896,2]
[349429041,1737175854000,-500.0,0.00020896,2]
[349429043,1737175854010,-500.0,0.00020896,2]
[349429045,1737175854019,-500.0,0.00020896,2]
[349429047,1737175854031,-500.0,0.00020896,2]
[349429049,1737175854041,-500.0,0.00020896,2]
[349429050,1737175854050,-500.0,0.00020896,2]
[349429053,1737175854060,-500.0,0.00020896,2]
[349429055,1737175854069,-500.0,0.00020896,2]
[349429057,1737175854079,-500.0,0.00020896,2]
[349429059,1737175854089,-500.0,0.00020896,2]
[349429060,1737175854098,-500.0,0.00020896,2]
[349429063,1737175854109,-500.0,0.00020896,2]
[349429064,1737175854119,-500.0,0.00020896,2]
[349429067,1737175854128,-562.58,0.00020896,2]
[349429068,1737175854137,-500.0,0.00020896,2]
[349429070,1737175854147,-500.0,0.00020896,2]
[349429072,1737175854156,-500.0,0.00020896,2]
[349429074,1737175854167,-500.0,0.00020896,2]
[349429076,1737175854176,-500.0,0.00020896,2]
[349429078,1737175854185,-500.0,0.00020896,2]
[349429080,1737175854194,-500.0,0.00020896,2]
[349429082,1737175854204,-500.0,0.00020896,2]
[349429084,1737175854213,-1029.42,0.00020896,2]
[349429086,1737175854223,-996.62,0.00020896,2]
[349429088,1737175854232,-500.0,0.00020896,2]
[349429090,1737175854241,-500.0,0.00020896,2]
[349429092,1737175854251,-500.0,0.00020896,2]
[349429094,1737175854260,-1389.28,0.00020896,2]
[349429096,1737175854269,-300.97386254,0.00020896,2]
[349429098,1737175854279,-500.0,0.00020896,2]
[349429100,1737175854288,-500.0,0.00020896,2]
[349429102,1737175854298,-500.0,0.00020896,2]
[349429104,1737175854306,-500.0,0.00020896,2]
[349429106,1737175854315,-602.38373655,0.00020896,2]
[349429108,1737175854325,-500.0,0.00020896,2]
[349429110,1737175854334,-500.0,0.00020896,2]
[349429112,1737175854343,-500.0,0.00020896,2]
[349429113,1737175854352,-500.0,0.00020896,2]
[349429115,1737175854362,-684.88,0.00020896,2]
[349429117,1737175854371,-862.36,0.00020896,2]
[349429119,1737175854381,-500.0,0.00020896,2]
[349429121,1737175854391,-500.0,0.00020896,2]
[349429123,1737175854400,-500.0,0.00020896,2]
[349429125,1737175854409,-717.01,0.00020896,2]
[349429127,1737175854419,-500.0,0.00020896,2]
[349429129,1737175854429,-500.0,0.00020896,2]
[349429131,1737175854439,-628.87,0.00020896,2]
[349429133,1737175854449,-500.0,0.00020896,2]
[349429135,1737175854459,-500.0,0.00020896,2]
[349429137,1737175854469,-500.0,0.00020896,2]
[349429139,1737175854478,-1637.7,0.00020896,2]
[349429141,1737175854489,-500.0,0.00020896,2]
[349429143,1737175854500,-547.9,0.00020896,2]
[349429145,1737175854509,-500.0,0.00020896,2]
[349429147,1737175854519,-500.0,0.00020896,2]
[349429149,1737175854530,-500.0,0.00020896,2]
[349429151,1737175854540,-613.2,0.00020896,2]
[349429153,1737175854550,-500.0,0.00020896,2]
[349429155,1737175854559,-615.6,0.00020896,2]
[349429156,1737175854568,-500.0,0.00020896,2]
[349429159,1737175854578,-500.0,0.00020896,2]
[349429160,1737175854587,-364.51,0.00020896,2]
[349429162,1737175854597,-300.46,0.00020896,2]
[349429164,1737175854606,-478.72,0.00020896,2]
[349429166,1737175854616,-500.0,0.00020896,2]
[349429169,1737175854626,-1635.51,0.00020896,2]
[349429170,1737175854636,-151.0,0.00020896,2]
[349429173,1737175854646,-1036.11,0.00020896,2]
[349429174,1737175854655,-500.0,0.00020896,2]
[349429177,1737175854665,-500.0,0.00020896,2]
[349429179,1737175854675,-324.76,0.00020896,2]
[349429180,1737175854685,-151.0,0.00020896,2]
[349429183,1737175854695,-500.0,0.00020896,2]
[349429185,1737175854704,-382.84824,0.00020896,2]
[349429186,1737175854713,-151.0,0.00020896,2]
[349429188,1737175854722,-382.84824,0.00020896,2]
[349429190,1737175854732,-151.0,0.00020896,2]
[349429192,1737175854741,-151.0,0.00020896,2]
[349429194,1737175854751,-228.678015,0.00020896,2]
[349429197,1737175854761,-228.678015,0.00020896,2]
[349429199,1737175854770,-500.0,0.00020898,2]
[349429200,1737175854782,-500.0,0.00020898,2]
[349429202,1737175854792,-500.0,0.00020898,2]
[349429205,1737175854802,-500.0,0.00020898,2]
[349429207,1737175854811,-171.47066115,0.00020898,2]
[349429209,1737175854822,-270.64858204,0.00020898,2]
[349429210,1737175854832,-622.59977653,0.00020898,2]
[349429212,1737175854842,-500.0,0.00020898,2]
[349429214,1737175854851,-587.2,0.00020898,2]
[349429216,1737175854861,-500.0,0.00020898,2]
[349429218,1737175854870,-500.0,0.00020898,2]
[349429220,1737175854880,-500.0,0.00020898,2]
[349429222,1737175854890,-500.0,0.00020898,2]
[349429224,1737175854899,-500.0,0.00020898,2]
[349429226,1737175854908,-1029.42,0.00020898,2]
[349429228,1737175854918,-996.62,0.00020898,2]
[349429230,1737175854928,-500.0,0.00020898,2]
[349429232,1737175854938,-500.0,0.00020898,2]
[349429234,1737175854947,-1389.28,0.00020898,2]
[349429236,1737175854957,-500.0,0.00020898,2]
[349429239,1737175854966,-500.0,0.00020898,2]
[349429240,1737175854975,-500.0,0.00020898,2]
[349429243,1737175854985,-862.36,0.00020898,2]
[349429245,1737175854998,-500.0,0.00020898,2]
[349429247,1737175855007,-500.0,0.00020898,2]
[349429249,1737175855016,-717.01,0.00020898,2]
[349429251,1737175855025,-304.89319883,0.00020898,2]
[349429253,1737175855036,-500.0,0.00020898,2]
[349429255,1737175855045,-500.0,0.00020898,2]
[349429256,1737175855055,-397.6979634,0.00020898,2]
[349429258,1737175855064,-1637.7,0.00020898,2]
[349429260,1737175855074,-547.9,0.00020898,2]
[349429263,1737175855083,-333.9500028,0.00020898,2]
[349429265,1737175855093,-500.0,0.00020898,2]
[349429266,1737175855102,-500.0,0.00020898,2]
[349429268,1737175855111,-613.2,0.00020898,2]
[349429270,1737175855120,-615.6,0.00020898,2]
[349429272,1737175855130,-500.0,0.00020898,2]
[349429274,1737175855139,-500.0,0.00020898,2]
[349429276,1737175855149,-1635.51,0.00020898,2]
[349429278,1737175855159,-1036.11,0.00020898,2]
[349429280,1737175855169,-500.0,0.00020898,2]
[349429282,1737175855179,-224.86402315,0.000209,2]
[349429285,1737175855188,-383.01524896,0.00020909,2]
[349429286,1737175855198,-383.01524896,0.0002091,2]
[349429288,1737175855207,-383.01524896,0.00020919,2]
[349429289,1737175855217,-383.01524896,0.00020931,2]
[349429290,1737175855227,-5061.28,0.00020951,2]
[349429291,1737175855237,-150.0,0.00020973,2]
[349429292,1737175855247,-151.0,0.00020992,2]
[349429293,1737175855256,-151.0,0.00020992,2]
[349429294,1737175855266,-151.0,0.00020992,2]
[349429295,1737175855275,-151.0,0.00020992,2]
[349429296,1737175855286,-151.0,0.00020992,2]
[349429298,1737175855296,-810.24,0.00020992,2]
[349429300,1737175855305,-661.31,0.00020992,2]
[349429302,1737175855315,-770.93,0.00020992,2]
[349429304,1737175855324,-500.0,0.00020992,2]
[349429306,1737175855334,-500.0,0.00020992,2]
[349429308,1737175855343,-500.0,0.00020992,2]
[349429310,1737175855353,-500.0,0.00020992,2]
[349429312,1737175855362,-2524.35,0.00020992,2]
[349429314,1737175855372,-2725.8,0.00020992,2]
[349429316,1737175855382,-500.0,0.00020992,2]
[349429318,1737175855391,-2724.58,0.00020992,2]
[349429320,1737175855401,-1800.31,0.00020992,2]
[349429322,1737175855410,-500.0,0.00020992,2]
[349429324,1737175855419,-1565.36,0.00020992,2]
[349429326,1737175855430,-500.0,0.00020992,2]
[349429328,1737175855439,-845.21,0.00020992,2]
[349429330,1737175855449,-683.14,0.00020992,2]
[349429332,1737175855458,-500.0,0.00020992,2]
[349429334,1737175855468,-622.54,0.00020992,2]
[349429336,1737175855478,-1063.8,0.00020992,2]
[349429338,1737175855488,-500.0,0.00020992,2]
[349429340,1737175855501,-500.0,0.00020992,2]
[349429342,1737175855511,-1018.63,0.00020992,2]
[349429344,1737175855520,-1999.79,0.00020992,2]
[349429346,1737175855531,-500.0,0.00020992,2]
[349429348,1737175855542,-687.96,0.00020992,2]
[349429350,1737175855552,-525.01784592,0.00020992,2]
[349429352,1737175855561,-500.0,0.00020992,2]
[349429354,1737175855572,-1286.61,0.00020992,2]
[349429356,1737175855582,-500.0,0.00020992,2]
[349429358,1737175855591,-615.01,0.00020992,2]
[349429360,1737175855601,-500.0,0.00020992,2]
[349429362,1737175855610,-500.0,0.00020992,2]
[349429364,1737175855619,-500.0,0.00020992,2]
[349429366,1737175855629,-2239.42,0.00020992,2]
[349429368,1737175855639,-500.0,0.00020992,2]
[349429370,1737175855649,-500.0,0.00020992,2]
[349429372,1737175855659,-500.0,0.00020992,2]
[349429374,1737175855669,-1157.12,0.00020992,2]
[349429376,1737175855678,-4244.28,0.00020992,2]
[349429378,1737175855687,-844.16,0.00020992,2]
[349429380,1737175855697,-151.0,0.00020992,2]
[349429382,1737175855706,-500.0,0.00020992,2]
[349429384,1737175855716,-720.24,0.00020992,2]
[349429386,1737175855725,-940.16,0.00020992,2]
[349429388,1737175855734,-500.0,0.00020993,2]
[349429390,1737175855743,-523.66,0.00020993,2]
[349429392,1737175855752,-500.0,0.00020993,2]
[349429394,1737175855761,-463.20005117,0.00020993,2]
[349429396,1737175855771,-500.0,0.00020993,2]
[349429398,1737175855781,-500.0,0.00020993,2]
[349429400,1737175855790,-500.0,0.00020993,2]
[349429402,1737175855800,-500.0,0.00020993,2]
[349429404,1737175855810,-500.0,0.00020993,2]
[349429406,1737175855819,-467.64731645,0.00020993,2]
[349429408,1737175855828,-500.0,0.00020993,2]
[349429410,1737175855838,-500.0,0.00020993,2]
[349429412,1737175855847,-485.40734964,0.00020993,2]
[349429414,1737175855858,-500.0,0.00020993,2]
[349429416,1737175855868,-500.0,0.00020993,2]
[349429418,1737175855876,-500.0,0.00020993,2]
[349429420,1737175855886,-684.88,0.00020993,2]
[349429421,1737175855895,-500.0,0.00020993,2]
[349429423,1737175855904,-500.0,0.00020993,2]
[349429425,1737175855913,-628.87,0.00020993,2]
[349429427,1737175855923,-500.0,0.00020993,2]
[349429429,1737175855932,-640.6929779,0.00020993,2]
[349429431,1737175855942,-856.61,0.00020993,2]
[349429433,1737175855951,-500.0,0.00020993,2]
[349429435,1737175855960,-500.0,0.00020993,2]
[349429437,1737175855970,-805.66,0.00020993,2]
[349429439,1737175855980,-500.0,0.00020993,2]
[349429441,1737175855990,-500.0,0.00020993,2]
[349429443,1737175856000,-500.0,0.00020993,2]
[349429445,1737175856009,-500.0,0.00020993,2]
[349429447,1737175856019,-582.12,0.00020993,2]
[349429449,1737175856030,-500.0,0.00020993,2]
[349429452,1737175856041,-1000.0,0.00020993,2]
[349429454,1737175856051,-1888.2,0.00020993,2]
[349429456,1737175856060,-1028.35,0.00020993,2]
[349429457,1737175856069,-887.71,0.00020993,2]
[349429472,1737175856195,-869.78,0.00020993,2]
[349429474,1737175856205,-500.0,0.00020993,2]
[349429476,1737175856215,-151.0,0.00020993,2]
[349429478,1737175856224,-500.0,0.00020994,2]
[349429480,1737175856234,-500.0,0.00020994,2]
[349429482,1737175856243,-500.0,0.00020994,2]
[349429484,1737175856252,-500.0,0.00020994,2]
[349429486,1737175856261,-500.0,0.00020994,2]
[349429488,1737175856270,-500.0,0.00020994,2]
[349429489,1737175856281,-500.0,0.00020994,2]
[349429491,1737175856290,-2675.94,0.00020994,2]
[349429493,1737175856299,-500.0,0.00020994,2]
[349429495,1737175856309,-500.0,0.00020994,2]
[349429497,1737175856319,-500.0,0.00020994,2]
[349429499,1737175856328,-500.0,0.00020994,2]
[349429501,1737175856338,-418.48383812,0.00020994,2]
[349429503,1737175856347,-500.0,0.00020994,2]
[349429505,1737175856356,-500.0,0.00020994,2]
[349429507,1737175856366,-500.0,0.00020994,2]
[349429509,1737175856375,-500.0,0.00020994,2]
[349429511,1737175856385,-500.0,0.00020994,2]
[349429514,1737175856395,-500.0,0.00020994,2]
[349429515,1737175856404,-500.0,0.00020994,2]
[349429518,1737175856414,-500.0,0.00020994,2]
[349429520,1737175856424,-534.34826693,0.00020994,2]
[349429522,1737175856434,-500.0,0.00020994,2]
[349429523,1737175856443,-500.0,0.00020994,2]
[349429525,1737175856452,-500.0,0.00020994,2]
[349429528,1737175856463,-500.0,0.00020994,2]
[349429529,1737175856473,-500.0,0.00020994,2]
[349429531,1737175856483,-500.0,0.00020994,2]
[349429534,1737175856495,-500.0,0.00020994,2]
[349429536,1737175856505,-1029.42,0.00020994,2]
[349429538,1737175856515,-996.62,0.00020994,2]
[349429540,1737175856524,-500.0,0.00020994,2]
[349429541,1737175856535,-500.0,0.00020994,2]
[349429544,1737175856544,-500.0,0.00020994,2]
[349429546,1737175856555,-500.0,0.00020994,2]
[349429548,1737175856565,-500.0,0.00020994,2]
[349429550,1737175856576,-500.0,0.00020994,2]
[349429552,1737175856586,-1389.28,0.00020994,2]
[349429554,1737175856595,-500.0,0.00020994,2]
[349429556,1737175856604,-500.0,0.00020994,2]
[349429557,1737175856613,-500.0,0.00020994,2]
[349429559,1737175856623,-500.0,0.00020994,2]
[349429562,1737175856633,-500.0,0.00020994,2]
[349429563,1737175856642,-500.0,0.00020994,2]
[349429565,1737175856652,-500.0,0.00020994,2]
[349429568,1737175856663,-500.0,0.00020994,2]
[349429570,1737175856672,-500.0,0.00020994,2]
[349429571,1737175856681,-500.0,0.00020994,2]
[349429573,1737175856691,-500.0,0.00020994,2]
[349429575,1737175856699,-500.0,0.00020994,2]
[349429577,1737175856709,-500.0,0.00020994,2]
[349429579,1737175856718,-862.36,0.00020994,2]
[349429581,1737175856727,-500.0,0.00020994,2]
[349429583,1737175856737,-500.0,0.00020994,2]
[349429585,1737175856746,-500.0,0.00020994,2]
[349429587,1737175856755,-500.0,0.00020994,2]
[349429589,1737175856765,-151.0,0.00020994,2]
[349429591,1737175856775,-500.0,0.00020994,2]
[349429593,1737175856785,-500.0,0.00020994,2]
[349429596,1737175856795,-717.01,0.00020994,2]
[349429598,1737175856804,-500.0,0.00020994,2]
[349429599,1737175856813,-500.0,0.00020994,2]
[349429601,1737175856823,-500.0,0.00020994,2]
[349429603,1737175856832,-500.0,0.00020994,2]
[349429606,1737175856842,-500.0,0.00020994,2]
[349429608,1737175856851,-500.0,0.00020994,2]
[349429609,1737175856861,-1003.07,0.00020994,2]
[349429612,1737175856871,-151.0,0.00020994,2]
[349429613,1737175856880,-1637.7,0.00020994,2]
[349429615,1737175856889,-547.9,0.00020994,2]
[349429617,1737175856899,-500.0,0.00020994,2]
[349429619,1737175856908,-151.0,0.00020994,2]
[349429622,1737175856917,-1664.67,0.00020994,2]
[349429623,1737175856927,-500.0,0.00020994,2]
[349429625,1737175856936,-500.0,0.00020994,2]
[349429627,1737175856946,-500.0,0.00020994,2]
[349429629,1737175856956,-613.2,0.00020994,2]
[349429632,1737175856967,-1679.01,0.00020994,2]
[349429634,1737175856976,-615.6,0.00020994,2]
[349429636,1737175856986,-500.0,0.00020994,2]
[349429638,1737175856995,-500.0,0.00020994,2]
[349429639,1737175857004,-500.0,0.00020994,2]
[349429641,1737175857014,-1646.82,0.00020994,2]
[349429643,1737175857024,-500.0,0.00020994,2]
[349429645,1737175857035,-1078.33,0.00020994,2]
[349429648,1737175857044,-1635.51,0.00020994,2]
[349429650,1737175857053,-1036.11,0.00020994,2]
[349429651,1737175857063,-500.0,0.00020994,2]
[349429653,1737175857072,-793.34,0.00020994,2]
[349429655,1737175857081,-500.0,0.00020994,2]
[349429657,1737175857090,-500.0,0.00020994,2]
[349429659,1737175857099,-500.0,0.00020994,2]
[349429661,1737175857109,-756.68,0.00020994,2]
[349429663,1737175857118,-500.0,0.00020994,2]
[349429665,1737175857127,-1341.36,0.00020994,2]
[349429667,1737175857137,-500.0,0.00020994,2]
[349429669,1737175857147,-500.0,0.00020994,2]
[349429671,1737175857156,-500.0,0.00020994,2]
[349429673,1737175857166,-500.0,0.00020994,2]
[349429675,1737175857175,-571.56,0.00020994,2]
[349429677,1737175857184,-500.0,0.00020994,2]
[349429678,1737175857194,-500.0,0.00020994,2]
[349429679,1737175857203,-500.0,0.00020994,2]
[349429680,1737175857212,-617.67,0.00020994,2]
[349429681,1737175857221,-500.0,0.00020994,2]
[349429682,1737175857231,-551.32,0.00020994,2]
[349429683,1737175857240,-500.0,0.00020994,2]
[349429684,1737175857249,-799.82,0.00020994,2]
[349429685,1737175857259,-500.0,0.00020994,2]
[349429686,1737175857269,-500.0,0.00020994,2]
[349429688,1737175857281,-500.0,0.00020994,2]
[349429690,1737175857290,-500.0,0.00020994,2]
[349429692,1737175857300,-500.0,0.00020994,2]
[349429694,1737175857309,-500.0,0.00020994,2]
[349429696,1737175857319,-500.0,0.00020994,2]
[349429698,1737175857329,-500.0,0.00020994,2]
[349429700,1737175857339,-500.0,0.00020994,2]
[349429702,1737175857348,-500.0,0.00020994,2]
[349429704,1737175857359,-500.0,0.00020994,2]
[349429706,1737175857369,-500.0,0.00020994,2]
[349429708,1737175857379,-500.0,0.00020994,2]
[349429710,1737175857389,-847.96,0.00020994,2]
[349429712,1737175857398,-595.64,0.00020994,2]
[349429714,1737175857408,-500.0,0.00020994,2]
[349429716,1737175857418,-500.0,0.00020994,2]
[349429718,1737175857427,-500.0,0.00020994,2]
[349429720,1737175857436,-500.0,0.00020994,2]
[349429722,1737175857446,-500.0,0.00020994,2]
[349429724,1737175857455,-500.0,0.00020994,2]
[349429726,1737175857465,-500.0,0.00020994,2]
[349429728,1737175857474,-598.09,0.00020994,2]
[349429731,1737175857484,-500.0,0.00020994,2]
[349429733,1737175857497,-151.0,0.00020994,2]
[349429735,1737175857506,-500.0,0.00020994,2]
[349429736,1737175857516,-500.0,0.00020994,2]
[349429739,1737175857525,-151.0,0.00020994,2]
[349429741,1737175857537,-500.0,0.00020994,2]
[349429743,1737175857546,-500.0,0.00020994,2]
[349429744,1737175857555,-502.5,0.00020994,2]
[349429746,1737175857565,-500.0,0.00020994,2]
[349429748,1737175857575,-5000.0,0.00020994,2]
[349429751,1737175857584,-500.0,0.00020994,2]
[349429753,1737175857594,-5000.0,0.00020994,2]
[349429755,1737175857603,-1031.72,0.00020994,2]
[349429757,1737175857612,-500.0,0.00020994,2]
[349429758,1737175857622,-500.0,0.00020994,2]
[349429761,1737175857632,-542.6,0.00020994,2]
[349429762,1737175857641,-500.0,0.00020994,2]
[349429764,1737175857651,-500.0,0.00020994,2]
[349429765,1737175857660,-500.0,0.00020994,2]
[349429766,1737175857669,-500.0,0.00020994,2]
[349429767,1737175857678,-943.36,0.00020994,2]
[349429768,1737175857688,-500.0,0.00020994,2]
[349429769,1737175857697,-500.0,0.00020994,2]
[349429770,1737175857706,-500.0,0.00020994,2]
[349429771,1737175857715,-500.0,0.00020994,2]
[349429772,1737175857724,-500.0,0.00020994,2]
[349429773,1737175857734,-1405.03,0.00020994,2]
[349429774,1737175857743,-575.35,0.00020994,2]
[349429775,1737175857752,-500.0,0.00020994,2]
[349429776,1737175857762,-500.0,0.00020994,2]
[349429777,1737175857771,-500.0,0.00020994,2]
[349429779,1737175857782,-708.38,0.00020994,2]
[349429780,1737175857791,-500.0,0.00020994,2]
[349429781,1737175857801,-652.15,0.00020994,2]
[349429782,1737175857811,-500.0,0.00020994,2]
[349429783,1737175857820,-1155.49,0.00020994,2]
[349429784,1737175857833,-500.0,0.00020994,2]
[349429786,1737175857843,-500.0,0.00020994,2]
[349429788,1737175857852,-1163.99,0.00020994,2]
[349429790,1737175857862,-500.0,0.00020994,2]
[349429791,1737175857871,-500.0,0.00020994,2]
[349429793,1737175857880,-500.0,0.00020994,2]
[349429795,1737175857890,-500.0,0.00020994,2]
[349429796,1737175857899,-1657.6,0.00020994,2]
[349429797,1737175857908,-500.0,0.00020994,2]
[349429798,1737175857918,-969.67,0.00020994,2]
[349429799,1737175857928,-500.0,0.00020994,2]
[349429800,1737175857937,-500.0,0.00020994,2]
[349429801,1737175857946,-500.0,0.00020995,2]
[349429802,1737175857956,-500.0,0.00020995,2]
[349429803,1737175857965,-500.0,0.00020995,2]
[349429804,1737175857974,-523.66,0.00020995,2]
[349429806,1737175857984,-500.0,0.00020995,2]
[349429807,1737175857993,-291.97233372,0.00020995,2]
[349429808,1737175858003,-341.77885846,0.00020995,2]
[349429809,1737175858012,-457.44,0.00020995,2]
[349429810,1737175858021,-500.0,0.00020995,2]
[349429811,1737175858033,-500.0,0.00020995,2]
[349429812,1737175858042,-500.0,0.00020995,2]
[349429813,1737175858051,-500.0,0.00020995,2]
[349429814,1737175858061,-500.0,0.00020995,2]
[349429815,1737175858070,-500.0,0.00020995,2]
[349429816,1737175858080,-500.0,0.00020995,2]
[349429817,1737175858089,-1029.42,0.00020995,2]
[349429818,1737175858099,-996.62,0.00020995,2]
[349429819,1737175858108,-500.0,0.00020995,2]
[349429820,1737175858118,-500.0,0.00020995,2]
[349429821,1737175858129,-500.0,0.00020995,2]
[349429822,1737175858139,-1389.28,0.00020995,2]
[349429823,1737175858149,-500.0,0.00020995,2]
[349429824,1737175858159,-500.0,0.00020995,2]
[349429825,1737175858170,-500.0,0.00020995,2]
[349429826,1737175858180,-500.0,0.00020995,2]
[349429827,1737175858190,-151.0,0.00020995,2]
[349429828,1737175858199,-500.0,0.00020995,2]
[349429829,1737175858208,-500.0,0.00020995,2]
[349429830,1737175858218,-684.88,0.00020995,2]
[349429831,1737175858228,-862.36,0.00020995,2]
[349429832,1737175858238,-500.0,0.00020995,2]
[349429833,1737175858248,-500.0,0.00020995,2]
[349429834,1737175858258,-500.0,0.00020995,2]
[349429835,1737175858267,-717.01,0.00020995,2]
[349429836,1737175858277,-500.0,0.00020995,2]
[349429837,1737175858288,-628.87,0.00020995,2]
[349429838,1737175858297,-300.25483387,0.00020995,2]
[349429839,1737175858307,-500.0,0.00020995,2]
[349429840,1737175858419,-1637.7,0.00020995,2]
[349429841,1737175858440,-500.0,0.00020995,2]
[349429842,1737175858449,-547.9,0.00020995,2]
[349429843,1737175858459,-500.0,0.00020995,2]
[349429844,1737175858468,-500.0,0.00020995,2]
[349429845,1737175858477,-613.2,0.00020995,2]
[349429846,1737175858487,-500.0,0.00020995,2]
[349429847,1737175858499,-500.0,0.00020995,2]
[349429848,1737175858508,-500.0,0.00020995,2]
[349429849,1737175858517,-615.6,0.00020995,2]
[349429850,1737175858527,-500.0,0.00020995,2]
[349429851,1737175858537,-514.44893361,0.00020995,2]
[349429852,1737175858547,-172.16,0.00020995,2]
[349429853,1737175858557,-500.0,0.00020995,2]
[349429854,1737175858566,-500.0,0.00020995,2]
[349429855,1737175858578,-500.0,0.00020995,2]
[349429856,1737175858588,-1635.51,0.00020995,2]
[349429857,1737175858598,-500.0,0.00020995,2]
[349429858,1737175858607,-500.0,0.00020995,2]
[349429859,1737175858617,-1036.11,0.00020995,2]
[349429860,1737175858627,-500.0,0.00020995,2]
[349429861,1737175858637,-500.0,0.00020995,2]
[349429862,1737175858647,-500.0,0.00020995,2]
[349429863,1737175858657,-500.0,0.00020995,2]
[349429864,1737175858667,-500.0,0.00020995,2]
[349429865,1737175858677,-376.94296413,0.00020995,2]
[349429866,1737175858687,-500.0,0.00020995,2]
[349429867,1737175858697,-216.66734216,0.00020995,2]
[349429868,1737175858707,-500.0,0.00020995,2]
[349429869,1737175858717,-500.0,0.00020995,2]
[349429870,1737175858727,-500.0,0.00020995,2]
[349429871,1737175858736,-683.14,0.00020995,2]
[349429872,1737175858747,-622.54,0.00020995,2]
[349429873,1737175858757,-500.0,0.00020995,2]
[349429874,1737175858768,-500.0,0.00020995,2]
[349429875,1737175858777,-486.33167388,0.00020995,2]
[349429876,1737175858787,-500.0,0.00020995,2]
[349429877,1737175858797,-500.0,0.00020995,2]
[349429878,1737175858806,-500.0,0.00020995,2]
[349429879,1737175858816,-1018.63,0.00020995,2]
[349429880,1737175858827,-500.0,0.00020995,2]
[349429881,1737175858836,-500.0,0.00020995,2]
[349429882,1737175858845,-500.0,0.00020995,2]
[349429883,1737175858855,-500.0,0.00020995,2]
[349429884,1737175858865,-1999.79,0.00020995,2]
[349429885,1737175858875,-500.0,0.00020995,2]
[349429886,1737175858885,-500.0,0.00020995,2]
[349429887,1737175858895,-687.96,0.00020995,2]
[349429888,1737175858905,-500.0,0.00020995,2]
[349429889,1737175858915,-500.0,0.00020995,2]
[349429890,1737175858925,-500.0,0.00020995,2]
[349429891,1737175858934,-500.0,0.00020995,2]
[349429892,1737175858943,-1286.61,0.00020995,2]
[349429893,1737175858953,-615.01,0.00020995,2]
[349429894,1737175858963,-500.0,0.00020995,2]
[349429895,1737175858972,-500.0,0.00020995,2]
[349429896,1737175858981,-2239.42,0.00020995,2]
[349429897,1737175858990,-500.0,0.00020995,2]
[349429898,1737175858999,-500.0,0.00020995,2]
[349429899,1737175859010,-500.0,0.00020995,2]
[349429900,1737175859019,-1157.12,0.00020995,2]
[349429901,1737175859030,-500.0,0.00020995,2]